{"text_format":"2","workbook":"xlsx","n_sheets":1,"sheets":["Inventory List"],"not_rendered":{"charts":0,"images":0,"macros":0,"external_links":0,"defined_names":1,"comments":0,"pivot_tables":0},"unopened":[],"bounds":{"document_bytes":16777216,"sheet_cells":100000,"run_cost":"one","rows_first":2000,"rows_last":500,"rows_between":2000,"halvings":0,"cell_chars":16384,"cell_head_chars":4096},"cells_cut":0,"cells_raw":0,"read":"whole","date_system":"1900"}

{"sheet":"Inventory List","index":0,"n_rows":29,"n_cols":12,"rows_kept":29,"cut":false,"hidden":false,"merged":[]}
[null,null,"Convenience Store Inventory List",{"$nulls":7},true]
[]
[]
[null,"Column1","Inventory ID","Name","Description","Unit Price","Quantity in Stock","Inventory Value","Reorder Level","Reorder Time in Days","Quantity in Reorder","停产？"]
[null,{"$f":"(tblInventoryList[[#This Row],[Quantity in Stock]]<=tblInventoryList[[#This Row],[Reorder Level]])*(tblInventoryList[[#This Row],[停产？]]=\"\")*valHighlight","v":1},"IN0001","Item 1","Desc 1",51,25,{"$f":"tblInventoryList[[#This Row],[Unit Price]]*tblInventoryList[[#This Row],[Quantity in Stock]]","v":1275},29,13,50,""]
[null,{"$f":"(tblInventoryList[[#This Row],[Quantity in Stock]]<=tblInventoryList[[#This Row],[Reorder Level]])*(tblInventoryList[[#This Row],[停产？]]=\"\")*valHighlight","v":1},"IN0002","Item 2","Desc 2",93,132,{"$f":"tblInventoryList[[#This Row],[Unit Price]]*tblInventoryList[[#This Row],[Quantity in Stock]]","v":12276},231,4,50,""]
[null,{"$f":"(tblInventoryList[[#This Row],[Quantity in Stock]]<=tblInventoryList[[#This Row],[Reorder Level]])*(tblInventoryList[[#This Row],[停产？]]=\"\")*valHighlight","v":0},"IN0003","Item 3","Desc 3",57,151,{"$f":"tblInventoryList[[#This Row],[Unit Price]]*tblInventoryList[[#This Row],[Quantity in Stock]]","v":8607},114,11,150,""]
[null,{"$f":"(tblInventoryList[[#This Row],[Quantity in Stock]]<=tblInventoryList[[#This Row],[Reorder Level]])*(tblInventoryList[[#This Row],[停产？]]=\"\")*valHighlight","v":0},"IN0004","Item 4","Desc 4",19,186,{"$f":"tblInventoryList[[#This Row],[Unit Price]]*tblInventoryList[[#This Row],[Quantity in Stock]]","v":3534},158,6,50,""]
[null,{"$f":"(tblInventoryList[[#This Row],[Quantity in Stock]]<=tblInventoryList[[#This Row],[Reorder Level]])*(tblInventoryList[[#This Row],[停产？]]=\"\")*valHighlight","v":0},"IN0005","Item 5","Desc 5",75,62,{"$f":"tblInventoryList[[#This Row],[Unit Price]]*tblInventoryList[[#This Row],[Quantity in Stock]]","v":4650},39,12,50,""]
[null,{"$f":"(tblInventoryList[[#This Row],[Quantity in Stock]]<=tblInventoryList[[#This Row],[Reorder Level]])*(tblInventoryList[[#This Row],[停产？]]=\"\")*valHighlight","v":1},"IN0006","Item 6","Desc 6",11,5,{"$f":"tblInventoryList[[#This Row],[Unit Price]]*tblInventoryList[[#This Row],[Quantity in Stock]]","v":55},9,13,150,""]
[null,{"$f":"(tblInventoryList[[#This Row],[Quantity in Stock]]<=tblInventoryList[[#This Row],[Reorder Level]])*(tblInventoryList[[#This Row],[停产？]]=\"\")*valHighlight","v":1},"IN0007","Item 7","Desc 7",56,58,{"$f":"tblInventoryList[[#This Row],[Unit Price]]*tblInventoryList[[#This Row],[Quantity in Stock]]","v":3248},109,7,100,""]
[null,{"$f":"(tblInventoryList[[#This Row],[Quantity in Stock]]<=tblInventoryList[[#This Row],[Reorder Level]])*(tblInventoryList[[#This Row],[停产？]]=\"\")*valHighlight","v":1},"IN0008","Item 8","Desc 8",38,101,{"$f":"tblInventoryList[[#This Row],[Unit Price]]*tblInventoryList[[#This Row],[Quantity in Stock]]","v":3838},162,3,100,""]
[null,{"$f":"(tblInventoryList[[#This Row],[Quantity in Stock]]<=tblInventoryList[[#This Row],[Reorder Level]])*(tblInventoryList[[#This Row],[停产？]]=\"\")*valHighlight","v":0},"IN0009","Item 9","Desc 9",59,122,{"$f":"tblInventoryList[[#This Row],[Unit Price]]*tblInventoryList[[#This Row],[Quantity in Stock]]","v":7198},82,3,150,""]
[null,{"$f":"(tblInventoryList[[#This Row],[Quantity in Stock]]<=tblInventoryList[[#This Row],[Reorder Level]])*(tblInventoryList[[#This Row],[停产？]]=\"\")*valHighlight","v":1},"IN0010","Item 10","Desc 10",50,175,{"$f":"tblInventoryList[[#This Row],[Unit Price]]*tblInventoryList[[#This Row],[Quantity in Stock]]","v":8750},283,8,150,""]
[null,{"$f":"(tblInventoryList[[#This Row],[Quantity in Stock]]<=tblInventoryList[[#This Row],[Reorder Level]])*(tblInventoryList[[#This Row],[停产？]]=\"\")*valHighlight","v":1},"IN0011","Item 11","Desc 11",59,176,{"$f":"tblInventoryList[[#This Row],[Unit Price]]*tblInventoryList[[#This Row],[Quantity in Stock]]","v":10384},229,1,100,""]
[null,{"$f":"(tblInventoryList[[#This Row],[Quantity in Stock]]<=tblInventoryList[[#This Row],[Reorder Level]])*(tblInventoryList[[#This Row],[停产？]]=\"\")*valHighlight","v":1},"IN0012","Item 12","Desc 12",18,22,{"$f":"tblInventoryList[[#This Row],[Unit Price]]*tblInventoryList[[#This Row],[Quantity in Stock]]","v":396},36,12,50,""]
[null,{"$f":"(tblInventoryList[[#This Row],[Quantity in Stock]]<=tblInventoryList[[#This Row],[Reorder Level]])*(tblInventoryList[[#This Row],[停产？]]=\"\")*valHighlight","v":1},"IN0013","Item 13","Desc 13",26,72,{"$f":"tblInventoryList[[#This Row],[Unit Price]]*tblInventoryList[[#This Row],[Quantity in Stock]]","v":1872},102,9,100,""]
[null,{"$f":"(tblInventoryList[[#This Row],[Quantity in Stock]]<=tblInventoryList[[#This Row],[Reorder Level]])*(tblInventoryList[[#This Row],[停产？]]=\"\")*valHighlight","v":1},"IN0014","Item 14","Desc 14",42,62,{"$f":"tblInventoryList[[#This Row],[Unit Price]]*tblInventoryList[[#This Row],[Quantity in Stock]]","v":2604},83,2,100,""]
[null,{"$f":"(tblInventoryList[[#This Row],[Quantity in Stock]]<=tblInventoryList[[#This Row],[Reorder Level]])*(tblInventoryList[[#This Row],[停产？]]=\"\")*valHighlight","v":0},"IN0015","Item 15","Desc 15",32,46,{"$f":"tblInventoryList[[#This Row],[Unit Price]]*tblInventoryList[[#This Row],[Quantity in Stock]]","v":1472},23,15,50,""]
[null,{"$f":"(tblInventoryList[[#This Row],[Quantity in Stock]]<=tblInventoryList[[#This Row],[Reorder Level]])*(tblInventoryList[[#This Row],[停产？]]=\"\")*valHighlight","v":1},"IN0016","Item 16","Desc 16",90,96,{"$f":"tblInventoryList[[#This Row],[Unit Price]]*tblInventoryList[[#This Row],[Quantity in Stock]]","v":8640},180,3,50,""]
[null,{"$f":"(tblInventoryList[[#This Row],[Quantity in Stock]]<=tblInventoryList[[#This Row],[Reorder Level]])*(tblInventoryList[[#This Row],[停产？]]=\"\")*valHighlight","v":0},"IN0017","Item 17","Desc 17",97,57,{"$f":"tblInventoryList[[#This Row],[Unit Price]]*tblInventoryList[[#This Row],[Quantity in Stock]]","v":5529},98,12,50,"Yes"]
[null,{"$f":"(tblInventoryList[[#This Row],[Quantity in Stock]]<=tblInventoryList[[#This Row],[Reorder Level]])*(tblInventoryList[[#This Row],[停产？]]=\"\")*valHighlight","v":1},"IN0018","Item 18","Desc 18",12,6,{"$f":"tblInventoryList[[#This Row],[Unit Price]]*tblInventoryList[[#This Row],[Quantity in Stock]]","v":72},7,13,50,""]
[null,{"$f":"(tblInventoryList[[#This Row],[Quantity in Stock]]<=tblInventoryList[[#This Row],[Reorder Level]])*(tblInventoryList[[#This Row],[停产？]]=\"\")*valHighlight","v":1},"IN0019","Item 19","Desc 19",82,143,{"$f":"tblInventoryList[[#This Row],[Unit Price]]*tblInventoryList[[#This Row],[Quantity in Stock]]","v":11726},164,12,150]
[null,{"$f":"(tblInventoryList[[#This Row],[Quantity in Stock]]<=tblInventoryList[[#This Row],[Reorder Level]])*(tblInventoryList[[#This Row],[停产？]]=\"\")*valHighlight","v":0},"IN0020","Item 20","Desc 20",16,124,{"$f":"tblInventoryList[[#This Row],[Unit Price]]*tblInventoryList[[#This Row],[Quantity in Stock]]","v":1984},113,14,50,""]
[null,{"$f":"(tblInventoryList[[#This Row],[Quantity in Stock]]<=tblInventoryList[[#This Row],[Reorder Level]])*(tblInventoryList[[#This Row],[停产？]]=\"\")*valHighlight","v":0},"IN0021","Item 21","Desc 21",19,112,{"$f":"tblInventoryList[[#This Row],[Unit Price]]*tblInventoryList[[#This Row],[Quantity in Stock]]","v":2128},75,11,50,""]
[null,{"$f":"(tblInventoryList[[#This Row],[Quantity in Stock]]<=tblInventoryList[[#This Row],[Reorder Level]])*(tblInventoryList[[#This Row],[停产？]]=\"\")*valHighlight","v":0},"IN0022","Item 22","Desc 22",24,182,{"$f":"tblInventoryList[[#This Row],[Unit Price]]*tblInventoryList[[#This Row],[Quantity in Stock]]","v":4368},132,15,150,""]
[null,{"$f":"(tblInventoryList[[#This Row],[Quantity in Stock]]<=tblInventoryList[[#This Row],[Reorder Level]])*(tblInventoryList[[#This Row],[停产？]]=\"\")*valHighlight","v":0},"IN0023","Item 23","Desc 23",29,106,{"$f":"tblInventoryList[[#This Row],[Unit Price]]*tblInventoryList[[#This Row],[Quantity in Stock]]","v":3074},142,1,150,"Yes"]
[null,{"$f":"(tblInventoryList[[#This Row],[Quantity in Stock]]<=tblInventoryList[[#This Row],[Reorder Level]])*(tblInventoryList[[#This Row],[停产？]]=\"\")*valHighlight","v":0},"IN0024","Item 24","Desc 24",75,173,{"$f":"tblInventoryList[[#This Row],[Unit Price]]*tblInventoryList[[#This Row],[Quantity in Stock]]","v":12975},127,9,100,""]
[null,{"$f":"(tblInventoryList[[#This Row],[Quantity in Stock]]<=tblInventoryList[[#This Row],[Reorder Level]])*(tblInventoryList[[#This Row],[停产？]]=\"\")*valHighlight","v":0},"IN0025","Item 25","Desc 25",14,28,{"$f":"tblInventoryList[[#This Row],[Unit Price]]*tblInventoryList[[#This Row],[Quantity in Stock]]","v":392},21,8,50,""]